bitfinex/quotes_SOLUSD_20240615
["timestamp","ask_amount","ask_price","bid_price","bid_amount"]
[1718445743707,30.5279,143.64,143.61,15.4583]
[1718445743886,38.2555,143.64,143.61,7.7291]
[1718445744213,30.5279,143.64,143.61,15.4583]
[1718445745402,38.2555,143.64,143.61,7.7291]
[1718445747220,22.8,143.64,143.61,12.882]
[1718445747421,2.5759,143.64,143.62,2.5761]
[1718445747719,5.7,143.64,143.63,23.184]
[1718445747906,5.7,143.64,143.63,25.76]
[1718445748311,5.7,143.64,143.63,18.0321]
[1718445748523,5.7,143.64,143.63,25.7602]
[1718445749222,5.7,143.64,143.63,15.4561]
[1718445749425,5.7,143.64,143.63,7.728]
[1718445749636,5.7,143.64,143.63,2.576]
[1718445750223,5.7,143.64,143.63,7.7281]
[1718445750429,5.7,143.64,143.63,15.4562]
[1718445750632,5.7,143.64,143.63,25.7604]
[1718445751417,5.7,143.64,143.63,7.7281]
[1718445751737,2.5761,143.63,143.61,7.7291]
[1718445751901,5.7,143.62,143.61,2.5763]
[1718445752102,5.7,143.62,143.6,23.1886]
[1718445752321,5.1525,143.62,143.59,15.4604]
[1718445752504,5.7,143.6,143.56,15.9819]
[1718445752706,5.7,143.58,143.57,35.4627]
[1718445752914,2.5765,143.61,143.59,7.7301]
[1718445753149,5.7,143.6,143.59,7.7301]
[1718445753354,5.7,143.6,143.59,25.7675]
[1718445757730,25.376,143.64,143.62,2.5762]
[1718445758035,5.7,143.63,143.62,2.5762]
[1718445759232,2.5756,143.66,143.64,2.5758]
[1718445759435,15.4598,143.68,143.66,7.7262]
[1718445759734,8.2753,143.67,143.65,7.7269]
[1718445759917,5.7,143.66,143.65,2.5756]
[1718445760424,8.2755,143.66,143.64,7.7272]
[1718445760744,5.7,143.65,143.64,2.5757]
[1718445761113,13.4271,143.65,143.63,2.5759]
[1718445761333,5.7,143.64,143.63,2.5759]
[1718445762236,5.7,143.64,143.63,7.728]
[1718445763112,5.7,143.64,143.63,15.4561]
[1718445763637,5.7,143.64,143.63,25.7603]
[1718445764222,18.0279,143.67,143.65,2.5756]
[1718445764223,2.5754,143.67,143.65,2.5756]
[1718445764420,5.7,143.66,143.65,7.7269]
[1718445764660,5.7,143.66,143.64,25.7576]
[1718445764943,5.7,143.65,143.64,25.7576]
[1718445765150,5.7,143.65,143.64,2.5757]
[1718445765350,8.2757,143.65,143.63,18.0316]
[1718445765511,18.5785,143.65,143.62,12.8806]
[1718445765712,7.7272,143.65,143.63,2.576]
[1718445766020,5.7,143.64,143.63,2.576]
[1718445766319,5.7,143.64,143.63,7.7281]
[1718445766524,5.7,143.64,143.63,15.4562]
[1718445767442,5.7,143.64,143.63,25.7604]
[1718445770131,2.5754,143.67,143.65,7.7269]
[1718445770317,5.7,143.66,143.65,7.7269]
[1718445770517,5.7,143.66,143.64,25.758]
[1718445770834,5.7,143.65,143.64,25.758]
[1718445771763,5.7,143.65,143.63,2.576]
[1718445771944,5.7,143.64,143.63,2.576]
[1718445772136,5.7,143.64,143.63,7.7281]
[1718445772340,5.7,143.64,143.63,2.576]
[1718445772947,5.7,143.64,143.63,7.7281]
[1718445773864,5.7,143.64,143.63,15.4562]
[1718445774050,5.7,143.64,143.63,25.7604]
[1718445779871,11.4,143.64,143.63,25.7604]
[1718445781350,11.4,143.64,143.62,25.7615]
[1718445781551,5.7,143.64,143.63,2.576]
[1718445781861,11.4,143.64,143.63,2.576]
[1718445782273,11.4,143.64,143.57,20.0]
[1718445782444,2.576,143.63,143.61,2.5763]
[1718445782646,5.7,143.62,143.61,2.5763]
[1718445783375,5.7,143.62,143.6,7.7293]
[1718445783557,5.7,143.61,143.6,23.1888]
[1718445783875,5.7,143.61,143.6,7.7295]
[1718445784254,5.7,143.61,143.6,15.4593]
[1718445784456,5.7,143.61,143.6,25.7657]
[1718445784677,5.7,143.61,143.59,25.767]
[1718445784853,5.7,143.6,143.59,5.1534]
[1718445785055,5.7,143.6,143.59,15.4603]
[1718445785257,5.7,143.6,143.59,2.5766]
[1718445785563,5.7,143.6,143.59,2.5767]
[1718445785952,5.7,143.6,143.59,7.7302]
[1718445786159,5.7,143.6,143.59,2.5767]
[1718445786879,5.7,143.6,143.59,7.7302]
[1718445788190,5.7,143.6,143.59,15.4605]
[1718445788868,5.7,143.6,143.59,25.7676]
[1718445789860,5.7,143.6,143.53,0.17]
[1718445790065,5.7,143.56,143.55,25.7744]
[1718445791567,7.24219527,143.61,143.6,2.5766]
[1718445791791,12.94219527,143.61,143.6,25.766]
[1718445791999,5.7,143.61,143.6,25.766]
[1718445792395,6.03544785,143.61,143.6,25.766]
[1718445794707,6.03544785,143.61,143.6,15.4596]
[1718445794867,6.03544785,143.61,143.6,2.5766]
[1718445796109,6.03544785,143.61,143.6,7.7298]
[1718445796295,0.33544785,143.61,143.6,25.766]
[1718445796593,6.03544785,143.61,143.6,25.766]
[1718445798094,6.03544785,143.61,143.6,2.5766]
[1718445798599,6.03544785,143.61,143.6,7.7298]
[1718445798887,6.03544785,143.61,143.6,15.4596]
[1718445799297,0.33544785,143.61,143.6,15.4596]
[1718445799476,6.03544785,143.61,143.6,25.766]
[1718445800073,6.03544785,143.61,143.6,7.7298]
[1718445802812,6.03544785,143.61,143.59,7.7301]
[1718445803018,5.7,143.6,143.58,5.1538]
[1718445803228,5.7,143.59,143.58,7.7307]
[1718445803395,5.7,143.59,143.57,7.7312]
[1718445803706,7.73,143.6,143.57,15.4624]
[1718445803916,5.7,143.58,143.57,15.4624]
[1718445804413,5.7,143.58,143.56,7.7316]
[1718445804414,5.7,143.58,143.56,2.5771]
[1718445804587,11.4,143.57,143.55,7.7323]
[1718445804788,5.7,143.56,143.55,7.7323]
[1718445805209,5.7,143.56,143.55,25.7746]
[1718445806491,5.3267,143.57,143.56,15.4638]
[1718445806692,11.0267,143.57,143.56,15.4638]
[1718445806907,11.36214785,143.57,143.56,25.773]
[1718445809510,11.73544785,143.57,143.56,25.773]
[1718445812007,11.73544785,143.57,143.56,7.7319]
[1718445814919,11.73544785,143.57,143.55,25.7737]
[1718445815116,5.7,143.56,143.55,2.5774]
[1718445815410,5.7,143.56,143.54,23.1988]
[1718445815622,5.7,143.55,143.54,25.7764]
[1718445816108,6.03544785,143.55,143.54,25.7764]
[1718445816506,6.03544785,143.55,143.54,7.7328]
[1718445816815,6.03544785,143.55,143.54,15.4658]
[1718445817009,6.03544785,143.55,143.54,7.7328]
[1718445820440,6.03544785,143.55,143.54,2.5776]
[1718445821428,6.03544785,143.55,143.53,25.7774]
[1718445821812,5.7,143.54,143.53,25.7774]
[1718445822215,5.7,143.54,143.53,7.7332]
[1718445822421,5.7,143.54,143.52,18.0457]
[1718445822422,5.7,143.54,143.52,25.7794]
[1718445822623,5.7,143.53,143.52,25.7794]
[1718445823211,5.7,143.53,143.5,2.5783]
[1718445823410,5.7,143.51,143.5,2.5783]
[1718445824036,6.03544785,143.51,143.5,7.735]
[1718445825314,6.03544785,143.51,143.5,15.4701]
[1718445826215,6.03544785,143.51,143.5,25.7836]
[1718445827522,11.73544785,143.51,143.49,7.7354]
[1718445827727,11.4,143.5,143.49,7.7354]
[1718445828215,11.73544785,143.5,143.49,7.7354]
[1718445828931,28.83544785,143.5,143.49,7.7354]
[1718445829431,28.83544785,143.5,143.49,15.4711]
[1718445833143,28.83544785,143.5,143.49,25.7854]
[1718445833827,28.83544785,143.5,143.49,7.7354]
[1718445834422,28.83544785,143.5,143.49,2.5784]
[1718445834942,0.33544785,143.5,143.49,2.5784]
[1718445835236,28.83544785,143.5,143.49,2.5784]
[1718445836740,28.83544785,143.5,143.49,7.7355]
[1718445837238,28.83544785,143.5,143.49,15.4712]
[1718445837740,28.83544785,143.5,143.49,7.7355]
[1718445838514,28.83544785,143.5,143.49,15.4712]
[1718445838822,28.83544785,143.5,143.49,7.7355]
[1718445839645,33.99224785,143.5,143.47,2.5788]
[1718445839861,5.7,143.48,143.46,25.7897]
[1718445840158,5.7,143.47,143.46,15.4743]
[1718445840326,6.03544785,143.47,143.46,25.7907]
[1718445841828,6.03544785,143.47,143.46,2.5789]
[1718445842034,6.03544785,143.47,143.46,7.7371]
[1718445842331,6.03544785,143.47,143.46,2.5789]
[1718445842646,6.03544785,143.47,143.45,7.7374]
[1718445842859,0.33544785,143.47,143.46,2.5791]
[1718445843045,6.03544785,143.47,143.46,2.5791]
[1718445844250,6.03544785,143.47,143.45,25.7923]
[1718445844424,5.7,143.46,143.45,23.2132]
[1718445845049,6.03544785,143.46,143.45,25.7924]
[1718445846456,0.33544785,143.46,143.45,25.7924]
[1718445846832,0.33544785,143.46,143.45,27.18623326]
[1718445847856,6.03544785,143.46,143.45,25.7924]
[1718445848158,13.77294785,143.46,143.43,5.1593]
[1718445848339,5.7,143.44,143.43,2.5795]
[1718445848655,5.7,143.44,143.43,7.7388]
[1718445849037,5.7,143.44,143.43,15.4777]
[1718445849244,5.7,143.44,143.43,7.7388]
[1718445849444,5.7,143.44,143.42,2.5797]
[1718445849650,5.7,143.43,143.42,7.7393]
[1718445851844,5.7,143.43,143.42,15.4788]
[1718445852058,2.5792,143.46,143.43,15.4775]
[1718445852352,2.5792,143.46,143.44,2.5794]
[1718445852560,23.2106,143.47,143.44,7.7382]
[1718445852561,5.7,143.45,143.44,7.7382]
[1718445852758,5.7,143.45,143.44,15.4766]
[1718445852930,5.7,143.45,143.43,2.5795]
[1718445853130,5.7,143.44,143.42,25.7974]
[1718445853335,5.7,143.43,143.42,25.7974]
[1718445853551,5.7,143.43,143.42,2.5796]
[1718445853766,11.4,143.43,143.42,2.5796]
[1718445853972,5.7,143.43,143.42,2.5798]
[1718445854260,5.7,143.43,143.36,22.1419]
[1718445854569,5.7,143.37,143.36,2.5809]
[1718445854767,5.7,143.37,143.35,7.743]
[1718445855138,5.7,143.36,143.35,2.581]
[1718445855340,5.7,143.36,143.35,25.8106]
[1718445857284,5.7,143.36,143.35,7.7431]
[1718445858343,5.7,143.36,143.35,25.8106]
[1718445859045,5.7,143.36,143.35,2.581]
[1718445859563,11.4,143.36,143.35,25.8106]
[1718445859771,9.83291047,143.39,143.36,12.9044]
[1718445859950,5.7,143.37,143.36,25.8089]
[1718445860153,7.25241047,143.39,143.37,2.5806]
[1718445860455,5.7,143.38,143.37,2.5806]
[1718445860633,22.2538,143.38,143.27,21.9931]
[1718445860838,22.2538,143.38,143.31,7.7451]
[1718445860839,5.1622,143.35,143.31,7.7451]
[1718445861067,15.4865,143.35,143.32,2.5814]
[1718445861272,5.7,143.33,143.32,15.4895]
[1718445861766,5.7,143.33,143.32,25.816]
[1718445862774,5.7,143.33,143.32,7.7446]
[1718445862972,5.7,143.33,143.32,15.4895]
[1718445863181,5.7,143.33,143.32,2.5814]
[1718445863352,5.7,143.33,143.32,2.5816]
[1718445863976,5.7,143.33,143.31,25.8168]
[1718445864280,5.7,143.32,143.31,7.7449]
[1718445864493,5.7,143.32,143.31,15.4903]
[1718445865289,5.7,143.32,143.31,25.8175]
[1718445867698,8.2816,143.32,143.27,21.9931]
[1718445867861,5.7,143.29,143.28,15.494]
[1718445868059,17.59787475,143.35,143.27,21.9931]
[1718445868060,5.7,143.3,143.29,25.8216]
[1718445868262,5.7,143.3,143.29,2.5821]
[1718445868480,5.7,143.3,143.29,7.7464]
[1718445868860,5.7,143.3,143.29,15.4929]
[1718445869672,5.7,143.3,143.29,7.7464]
[1718445869892,5.7,143.3,143.28,25.8224]
[1718445870272,5.7,143.29,143.28,25.8224]
[1718445874889,5.7,143.29,143.28,7.7468]
[1718445875082,5.7,143.29,143.28,25.8232]
[1718445885568,23.60765693,143.32,143.3,5.1639]
[1718445885774,23.60765693,143.32,143.31,15.4908]
[1718445885775,7.27065693,143.32,143.31,15.4908]
[1718445885993,12.97065693,143.32,143.31,25.818]
[1718445887974,7.27065693,143.32,143.31,25.818]
[1718445888297,5.7,143.32,143.31,15.4908]
[1718445888490,5.7,143.32,143.31,25.818]
[1718445890997,5.7,143.32,143.27,16.1673]
[1718445891177,2.5816,143.32,143.29,7.7462]
[1718445891507,5.7,143.3,143.29,7.7462]
[1718445892083,5.7,143.3,143.29,15.4927]
[1718445892398,5.7,143.3,143.29,25.8214]
[1718445900093,5.7,143.3,143.29,7.7462]
[1718445900903,5.7,143.3,143.28,18.0759]
[1718445900904,7.26608756,143.33,143.31,2.5817]
[1718445901093,7.26608756,143.33,143.32,15.4897]
[1718445901290,30.5428,143.36,143.33,2.5813]
[1718445901479,5.7,143.34,143.33,7.7441]
[1718445902099,5.7,143.34,143.33,2.5813]
[1718445902687,5.7,143.34,143.32,25.8159]
[1718445902887,5.7,143.33,143.32,25.8159]
[1718445903386,30.06476141,143.36,143.34,2.5812]
[1718445903582,9.84566141,143.36,143.34,2.5812]
[1718445903812,5.7,143.35,143.34,7.7437]
[1718445904107,5.7,143.35,143.34,25.8126]
[1718445905806,7.26476141,143.36,143.35,2.581]
[1718445905990,7.26476141,143.36,143.35,25.8106]
[1718445906318,5.7,143.36,143.35,25.8106]
[1718445907719,5.7,143.36,143.35,7.7431]
[1718445908703,5.7,143.36,143.35,15.4863]
[1718445909504,5.7,143.36,143.35,25.8106]
[1718445910205,2.5806,143.38,143.36,2.5809]
[1718445910518,5.7,143.37,143.36,2.5809]
[1718445910718,6.03333333,143.37,143.36,2.5809]
[1718445911416,5.1619,143.36,143.28,16.6487]
[1718445911618,5.7,143.31,143.29,20.0]
[1718445911799,5.7,143.31,143.3,25.8196]
[1718445911994,5.7,143.31,143.3,45.8196]
[1718445912194,6.03333333,143.31,143.3,45.8196]
[1718445912615,6.03333333,143.31,143.3,25.8196]
[1718445917295,6.03333333,143.31,143.3,7.7458]
[1718445918500,0.33333333,143.31,143.3,25.8196]
[1718445918725,6.03333333,143.31,143.3,25.8196]
[1718445920223,6.03333333,143.31,143.3,7.7458]
[1718445921129,6.03333333,143.31,143.3,2.5819]
[1718445923732,6.03333333,143.31,143.29,25.8205]
[1718445924039,5.7,143.3,143.29,18.0744]
[1718445924213,5.7,143.3,143.29,25.8209]
[1718445924412,6.03333333,143.3,143.29,25.8209]
[1718445929237,11.73333333,143.3,143.28,2.5822]
[1718445929447,11.57,143.29,143.26,23.244]
[1718445929618,5.7,143.27,143.26,25.8265]
[1718445930015,6.03333333,143.27,143.26,2.5825]
[1718445930330,6.03333333,143.27,143.25,8.3955352]
[1718445930633,5.7,143.26,143.25,8.3955352]
[1718445931017,6.03333333,143.26,143.25,8.3955352]
[1718445931442,6.03333333,143.26,143.25,16.1441352]
[1718445931639,6.03333333,143.26,143.25,0.6473352]
[1718445932535,8.78603333,143.26,143.25,0.6473352]
[1718445932840,6.54333333,143.26,143.25,0.6473352]
[1718445933635,6.20333333,143.26,143.25,0.6473352]
[1718445933845,6.03333333,143.26,143.25,0.6473352]
[1718445934349,6.03333333,143.26,143.25,8.3958352]
[1718445934648,6.03333333,143.26,143.25,26.4759352]
[1718445935418,6.03333333,143.26,143.25,8.3958352]
[1718445935819,6.03333333,143.26,143.25,3.2301352]
[1718445936539,6.03333333,143.26,143.25,0.6473352]
[1718445937642,13.29040823,143.26,143.25,0.6473352]
[1718445939637,7.59040823,143.26,143.25,3.2301352]
[1718445939865,13.29040823,143.26,143.25,3.2301352]
[1718445940044,13.29040823,143.26,143.25,0.6473352]
[1718445940749,13.29040823,143.26,143.25,8.3958352]
[1718445940938,6.03333333,143.26,143.25,26.4759352]
[1718445941116,0.33333333,143.26,143.25,26.4759352]
[1718445942918,0.33333333,143.26,143.25,3.2301352]
[1718445943120,6.03333333,143.26,143.25,3.2301352]
[1718445943428,6.03333333,143.26,143.25,0.6473352]
[1718445943634,8.61603333,143.26,143.25,0.6473352]
[1718445944015,0.33333333,143.26,143.25,0.6473352]
[1718445944229,8.61603333,143.26,143.25,0.6473352]
[1718445944541,6.03333333,143.26,143.25,0.6473352]
[1718445944747,8.61603333,143.26,143.25,0.6473352]
[1718445945126,6.03333333,143.26,143.25,8.3958352]
[1718445945334,6.03333333,143.26,143.25,0.6473352]
[1718445946718,6.03333333,143.26,143.25,3.2301352]
[1718445948048,6.03333333,143.26,143.25,0.6473352]
[1718445950226,8.61603333,143.26,143.25,0.6473352]
[1718445950555,21.52953333,143.26,143.25,0.6473352]
[1718445950858,13.78143333,143.26,143.25,0.6473352]
[1718445951521,8.61603333,143.26,143.25,0.6473352]
[1718445952664,6.03333333,143.26,143.25,0.6473352]
[1718445952826,13.78143333,143.26,143.25,0.6473352]
[1718445954451,8.61603333,143.26,143.25,0.6473352]
[1718445956348,6.03333333,143.26,143.25,0.6473352]
[1718445957524,8.61603333,143.26,143.25,0.6473352]
[1718445958039,6.03333333,143.26,143.25,16.1444352]
[1718445958366,6.03333333,143.26,143.25,8.3958352]
[1718445958889,6.03333333,143.26,143.25,3.2301352]
[1718445959795,6.03333333,143.26,143.25,8.3958352]
[1718445960089,6.03333333,143.26,143.25,16.1444352]
[1718445960496,6.03333333,143.26,143.25,8.3958352]
[1718445960663,6.03333333,143.26,143.25,3.2301352]
[1718445961092,6.03333333,143.26,143.25,8.3958352]
[1718445961382,6.03333333,143.26,143.25,16.1444352]
[1718445962187,0.33333333,143.26,143.25,36.1444352]
[1718445962438,0.33333333,143.26,143.25,36.3144352]
[1718445962690,0.33333333,143.26,143.25,36.6544352]
[1718445968888,0.33333333,143.26,143.25,36.8244352]
[1718445969312,0.33333333,143.26,143.25,42.5244352]
[1718445969818,0.33333333,143.26,143.25,142.5244352]
[1718445971214,0.33333333,143.26,143.25,163.4344352]
[1718445971606,0.33333333,143.26,143.25,42.5244352]
[1718445972215,0.33333333,143.26,143.25,36.1444352]
[1718445972385,0.33333333,143.26,143.25,16.1444352]
[1718445973923,0.33333333,143.26,143.25,36.1444352]
[1718445981917,0.33333333,143.26,143.25,16.1444352]
[1718445986749,6.03333333,143.26,143.25,16.1444352]
[1718445990283,6.03333333,143.26,143.25,3.2301352]
[1718445990764,6.03333333,143.26,143.25,0.6473352]
[1718445990941,8.61603333,143.26,143.25,0.6473352]
[1718445991147,6.03333333,143.26,143.25,0.6473352]
[1718445999998,13.29220553,143.26,143.25,0.6473352]
[1718446000355,13.29220553,143.26,143.25,3.2301352]
[1718446000866,13.29220553,143.26,143.25,0.6473352]
[1718446002891,13.29220553,143.26,143.25,16.1444352]
[1718446003055,7.59220553,143.26,143.25,16.1444352]
[1718446003255,13.29220553,143.26,143.25,16.1444352]
[1718446003875,39.11920553,143.26,143.25,0.6473352]
[1718446005792,7.59220553,143.26,143.25,0.6473352]
[1718446006079,6.03333333,143.26,143.25,0.6473352]
[1718446008691,8.61603333,143.26,143.25,0.6473352]
[1718446009287,0.33333333,143.26,143.25,8.3958352]
[1718446009584,6.03333333,143.26,143.25,16.1444352]
[1718446011865,6.03333333,143.26,143.25,3.2301352]
[1718446012867,6.03333333,143.26,143.25,16.1444352]
[1718446013789,6.03333333,143.26,143.25,8.3958352]
[1718446014000,6.03333333,143.26,143.25,0.6473352]
[1718446014497,0.33333333,143.26,143.25,0.6473352]
[1718446014669,6.03333333,143.26,143.25,0.6473352]
[1718446015681,6.03333333,143.26,143.25,3.2301352]
[1718446015885,31.86033333,143.26,143.25,0.6473352]
[1718446017281,13.78143333,143.26,143.25,0.6473352]
[1718446018295,8.61603333,143.26,143.25,0.6473352]
[1718446018674,13.78143333,143.26,143.25,0.6473352]
[1718446019177,8.61603333,143.26,143.25,0.6473352]
[1718446019602,13.95143333,143.26,143.25,0.6473352]
[1718446019809,14.46143333,143.26,143.25,0.6473352]
[1718446020030,32.54033333,143.26,143.25,0.6473352]
[1718446020221,26.0024,143.23,143.22,7.53669137]
[1718446020512,26.3424,143.23,143.22,7.53669137]
[1718446020818,55.17573333,143.23,143.22,7.53669137]
[1718446021317,55.17573333,143.23,143.14,7.7543]
[1718446021318,0.17,143.19,143.14,7.7543]
[1718446021492,0.17,143.19,143.15,7.7539]
[1718446021493,7.7527,143.18,143.15,7.7539]
[1718446021816,8.4321,143.19,143.15,5.1693]
[1718446022120,5.7,143.16,143.15,2.5847]
[1718446022422,5.7,143.16,143.14,21.7627]
[1718446022720,26.3509,143.19,143.16,2.5845]
[1718446022896,5.7,143.17,143.16,2.5845]
[1718446023413,5.7,143.17,143.15,2.5845]
[1718446023617,5.7,143.16,143.15,2.5845]
[1718446025414,5.7,143.16,143.11,17.375691]
[1718446025415,3.094,143.19,143.16,7.7534]
[1718446025588,5.7,143.17,143.16,2.5844]
[1718446026298,5.7,143.17,143.16,7.7534]
[1718446028001,2.584,143.19,143.17,2.5843]
[1718446028326,5.7,143.18,143.17,2.5843]
[1718446028512,5.7,143.18,143.17,7.7529]
[1718446029203,8.2841,143.18,143.11,17.375691]
[1718446029412,13.4526,143.18,143.15,2.5846]
[1718446029608,5.7,143.16,143.15,7.754]
[1718446030124,30.5505,143.22,143.12,0.17]
[1718446030309,9.36125488,143.23,143.2,7.7511]
[1718446030511,7.7514,143.2,143.17,7.7528]
[1718446030740,5.7,143.21,143.19,2.5839]
[1718446030935,5.7,143.2,143.19,2.5839]
[1718446031435,5.7,143.2,143.19,5.1679]
[1718446031604,22.8,143.22,143.21,2.5836]
[1718446031930,22.8,143.22,143.21,7.7508]
[1718446031931,28.5,143.22,143.21,7.7508]
[1718446032416,28.5,143.22,143.2,7.751]
[1718446032723,25.34620939,143.24,143.21,2.5835]
[1718446032904,25.34620939,143.24,143.19,2.5839]
[1718446032905,2.5836,143.21,143.19,2.5839]
[1718446033104,5.7,143.2,143.19,2.5839]
[1718446033617,5.7,143.2,143.19,7.7518]
[1718446034011,5.7,143.2,143.18,5.168]
[1718446034345,5.7,143.19,143.18,7.752]
[1718446035045,5.7,143.19,143.18,7.7523]
[1718446036116,29.2967,143.19,143.16,2.5844]
[1718446036313,5.7,143.17,143.16,7.7534]
[1718446038511,5.7,143.17,143.16,2.5844]
[1718446038728,5.7,143.17,143.16,2.5845]
[1718446038911,5.7,143.17,143.15,5.1692]
[1718446039231,2.5841,143.18,143.16,2.5845]
[1718446039420,5.7,143.17,143.15,7.7537]
[1718446039737,5.7,143.16,143.15,7.7537]
[1718446040807,2.5839,143.19,143.17,2.5842]
[1718446041032,5.7,143.18,143.17,2.5842]
[1718446041747,5.7,143.18,143.17,7.7528]
[1718446042241,5.7,143.18,143.17,2.5842]
[1718446042821,7.26060892,143.19,143.18,2.5841]
[1718446043017,15.54450892,143.19,143.17,2.5842]
[1718446043222,5.7,143.18,143.17,2.5842]
[1718446043827,5.7,143.18,143.17,7.7528]
[1718446045352,5.7,143.18,143.17,2.5842]
[1718446045648,5.7,143.18,143.17,7.7528]
[1718446047042,15.5084,143.15,143.12,2.5852]
[1718446047364,15.5084,143.15,143.11,0.859391]
[1718446047365,5.7,143.15,143.13,5.1699]
[1718446047647,5.7,143.15,143.14,2.5848]
[1718446047849,11.4,143.15,143.13,7.7548]
[1718446048049,5.7,143.14,143.13,7.7548]
[1718446048626,21.8188,143.17,143.14,2.5847]
[1718446048839,5.7,143.15,143.14,2.5847]
[1718446049252,7.26060892,143.19,143.11,0.859391]
[1718446049439,22.76470892,143.19,143.16,2.5844]
[1718446049758,5.7,143.17,143.16,2.5844]
[1718446050128,5.7,143.17,143.16,7.7533]
[1718446051228,5.7,143.17,143.16,2.5844]
[1718446051427,5.7,143.17,143.15,7.7537]
[1718446051752,5.7,143.16,143.15,7.7537]
[1718446054854,33.10050892,143.19,143.16,2.5844]
[1718446055054,5.7,143.17,143.16,2.5844]
[1718446055429,5.7,143.17,143.16,7.7534]
[1718446056447,7.26060892,143.19,143.18,2.5841]
[1718446056652,5.7,143.19,143.18,2.5841]
[1718446058336,9.84547301,143.21,143.19,2.5839]
[1718446058530,5.7,143.2,143.18,2.584]
[1718446058746,5.7,143.19,143.12,0.17]
[1718446058952,22.76377301,143.21,143.18,2.5841]
[1718446059255,5.7,143.19,143.18,7.7524]
[1718446059430,5.7,143.19,143.18,2.5841]
[1718446059631,22.76367301,143.21,143.18,2.5841]
[1718446059958,5.7,143.19,143.18,7.7524]
[1718446061458,5.7,143.19,143.18,2.5841]
[1718446061827,23.7884,143.19,143.11,20.859391]
[1718446062051,2.5842,143.18,143.15,7.7537]
[1718446062266,5.7,143.16,143.15,7.7539]
[1718446064244,5.7,143.16,143.11,0.859391]
[1718446064437,115.188,143.18,143.11,0.859391]
[1718446064438,5.7,143.12,143.11,0.859391]
[1718446064756,5.7,143.12,143.11,8.615391]
[1718446065464,22.8,143.15,143.14,2.5848]
[1718446065640,22.8,143.15,143.13,7.7549]
[1718446066261,22.8,143.15,143.14,2.5848]
[1718446066466,22.8,143.15,143.13,7.7549]
[1718446067159,25.3847,143.15,143.12,2.5851]
[1718446067367,37.81641389,143.15,143.12,2.5851]
[1718446067589,32.64701389,143.15,143.12,7.7555]
[1718446068660,30.06231389,143.15,143.13,2.585]
[1718446068862,30.06231389,143.15,143.13,2.5849]
[1718446069066,30.06231389,143.15,143.13,2.585]
[1718446069249,30.06231389,143.15,143.12,5.1703]
[1718446069749,30.06231389,143.15,143.11,0.859391]
[1718446069750,42.98581389,143.15,143.11,6.029991]
[1718446070062,5.7,143.12,143.11,6.029991]
[1718446070234,5.7,143.12,143.11,8.615391]
[1718446073582,5.7,143.12,143.11,16.371591]
[1718446073752,5.7,143.12,143.11,3.444791]
[1718446073954,5.7,143.12,143.11,8.615591]
[1718446074669,5.7,143.12,143.11,16.371791]
[1718446075952,5.7,143.12,143.11,3.444791]
[1718446076557,5.7,143.12,143.11,0.859391]
[1718446077378,5.7,143.12,143.11,3.444791]
[1718446077950,5.7,143.12,143.11,0.859391]
[1718446078884,5.7,143.12,143.11,16.371791]
[1718446080463,7.26502343,143.13,143.12,7.7556]
[1718446080666,15.55012343,143.13,143.11,0.859391]
[1718446080863,5.7,143.12,143.11,3.444791]
[1718446081389,8.2852,143.12,143.11,0.859391]
[1718446081557,31.5522,143.12,143.11,0.859391]